Cogmind - Beta 11.1 @@@ ROGUE MODE // 2022.06.12 @ 13:26:46 Player: Gobbopathe Result: Escaped! Performance ------------- Evolutions (9) 4500 Regions Visited (19) 3800 Robots Destroyed (106) 530 Value Destroyed (3215) 3215 Prototype IDs (47) 940 Alien Tech Used (2) 400 Bonus (3778) 3778 TOTAL SCORE: 17163 Bonus ------- High Alert Combat Kills 96 Follower Combat Kills 216 Met Data Miner 300 Met Zhirov 300 Win 3000 Friendly Fire -134 Cogmind --------- Core Integrity 1248/1600 Matter 185/300 Energy 344/350 System Corruption 15% Temperature Cool (15) Movement Flying (20) Location To Epsilon Eridani Parts ------- > --- POWER (2) -------- Quantum Reactor > --- PROPULSION (7) --- Impulse Thruster Impulse Thruster Impulse Thruster Experimental Q-thruster Experimental Q-thruster > --- UTILITY (14) ----- Advanced Weight Redist. System Enhanced Optical Array Long-range Sensor Array Advanced Signal Interpreter Advanced Targeting Computer Improved Melee Analysis Suite Advanced Target Analyzer Core Analyzer Improved Armor Integrity Analyzer Improved System Shield Advanced System Shield > --- WEAPON (2) ------- Enhanced Force Lance > --- INVENTORY (5) ---- Light Quantum Reactor Energy Well (336) Improved Arc Projector Enhanced Quantum Rifle Advanced Remote Datajack Peak State ------------ > --- POWER ------------ Improved Ion Engine Light Quantum Reactor > --- PROPULSION ------- Field Propulsion Array Impulse Thruster Array Experimental Q-thruster Experimental Q-thruster > --- UTILITY ---------- Advanced Heat Sink Energy Well Advanced Energy Well Advanced Weight Redist. System Enhanced Optical Array Long-range Sensor Array Advanced Signal Interpreter Transport Network Coupler Advanced Targeting Computer Advanced Target Analyzer Advanced Target Analyzer Improved Armor Integrity Analyzer Improved Reaction Control System Advanced System Shield > --- WEAPON ----------- Enhanced Force Lance > --- INVENTORY -------- Light Antimatter Reactor Transdimensional Reconstructor Gamma Rifle Micro-nuke Launcher Advanced Remote Datajack [Rating: 147] Favorites ----------- Power Micro Fission Core Engine Light Angular Momentum Engine Power Core Micro Fission Core Reactor Fusion Reactor Propulsion Combat Gravmag System Leg Carbon-fiber Leg Wheel Wheel Hover Unit Combat Gravmag System Flight Unit Experimental Q-thruster Utility System Shield Device Sensor Array Storage Medium Storage Unit Processor Advanced Signal Interpreter Hackware System Shield Protection Light Regenerative Plating Weapon Field Laser Energy Gun Field Laser Energy Cannon Heavy Phase Cannon Ballistic Gun Precision Assault Rifle Ballistic Cannon Bore Cannon Launcher Proton Missile Launcher Impact Weapon Makeshift Hammer Slashing Weapon Makeshift Sword Piercing Weapon Enhanced Force Lance Build | -11 -10 -9 -8 -7 -7 -7 -7 -6 -6 -5 -5 -4 -4 -4 -4 -3 -3 -2 -1 ------- Run | Scr Mat Mat Mat Fac Low Low Dat Pro Fac Fac Ext Fac Upp Upp Zhi Pro Res Res Acc Slots Evolved 18 | . . 2 2 2 . . . . 2 2 . 2 . . . . 2 2 2 Power 1 | . . . . . . . . . 1 . . . . . . . . . . Propulsion 5 | . . . 2 . . . . . . . . . . . . . 1 . 2 Utility 12 | . . 2 . 2 . . . . 1 2 . 2 . . . . 1 2 . Weapon . | . . . . . . . . . . . . . . . . . . . . Parts Attached 278 | 6 11 11 17 7 5 19 . 11 10 12 16 39 1 8 11 7 22 36 29 Power 31 | 1 3 1 1 1 1 . . 1 1 . 2 9 . 1 1 . 2 3 3 Engine 12 | 1 3 1 1 1 . . . 1 1 . 2 . . . . . . . 1 Core 9 | . . . . . 1 . . . . . . 8 . . . . . . . Reactor 10 | . . . . . . . . . . . . 1 . 1 1 . 2 3 2 Propulsion 61 | 2 3 2 7 3 . 7 . 3 3 1 1 4 . . 2 2 3 13 5 Treads . | . . . . . . . . . . . . . . . . . . . . Leg 1 | . . . . . . . . 1 . . . . . . . . . . . Wheel 9 | 2 3 2 . . . 2 . . . . . . . . . . . . . Hover 24 | . . . 3 2 . . . 2 3 1 1 4 . . 2 2 2 2 . Flight 27 | . . . 4 1 . 5 . . . . . . . . . . 1 11 5 Utility 117 | 1 3 3 3 3 2 5 . 3 3 11 12 17 1 5 6 4 8 16 11 Device 68 | . . 2 . 1 2 4 . 2 2 9 9 13 . 3 3 2 5 8 3 Storage 14 | 1 1 . 3 . . . . . . . 1 1 . . 1 2 . 2 2 Processor 18 | . . . . 1 . 1 . 1 . 1 . 1 . 1 . . 2 5 5 Hackware 9 | . . . . 1 . . . . 1 1 . 2 . . 1 . 1 1 1 Protection 8 | . 2 1 . . . . . . . . 2 . 1 1 1 . . . . Artifact . | . . . . . . . . . . . . . . . . . . . . Weapon 69 | 2 2 5 6 . 2 7 . 4 3 . 1 9 . 2 2 1 9 4 10 Energy Gun 22 | 1 1 5 6 . 2 3 . 1 . . . . . . . . . 2 1 Energy Cannon 2 | . . . . . . . . . . . . 2 . . . . . . . Ballistic Gun 7 | 1 1 . . . . 1 . 1 1 . . 2 . . . . . . . Ballistic Cannon 14 | . . . . . . 1 . 1 . . 1 3 . 2 1 1 4 . . Launcher 6 | . . . . . . 2 . 1 . . . . . . . . . 1 2 Special Weapon . | . . . . . . . . . . . . . . . . . . . . Impact Weapon 5 | . . . . . . . . . . . . . . . 1 . 4 . . Slashing Weapon 4 | . . . . . . . . . 2 . . 2 . . . . . . . Piercing Weapon 9 | . . . . . . . . . . . . . . . . . 1 1 7 Special Melee Weapon . | . . . . . . . . . . . . . . . . . . . . Unidentified Prototypes 19 | . . 2 . 2 . . . . . . . 4 . . 4 . 3 4 . Parts Lost 62 | . . 2 . . 1 . . 8 . . 4 7 . 5 . 1 21 4 9 Power 8 | . . . . . . . . 1 . . 3 . . 1 . . 3 . . Propulsion 19 | . . 1 . . 1 . . 4 . . . 2 . . . . 7 1 3 Utility 26 | . . . . . . . . 1 . . 1 4 . 3 . 1 9 2 5 Weapon 9 | . . 1 . . . . . 2 . . . 1 . 1 . . 2 1 1 Highest Loss Streak 8 | . . 1 . . 1 . . 8 . . 3 4 . 5 . 1 8 2 4 To Critical Strikes . | . . . . . . . . . . . . . . . . . . . . Average Slot Usage (%) 86 | . 92 98 85 99 87 95 100 82 87 93 92 94 100 97 99 96 71 45 73 Engine 3 | . 14 11 9 7 1 . . 5 8 11 10 . . . . . . . . Core 2 | . . . . . 5 7 7 . . . . 7 10 7 5 5 2 . . Reactor 1 | . . . . . . . . . . . . 1 . 2 5 5 3 3 4 Wheel 4 | . 28 21 1 . . 9 15 1 . . . . . . . . . . . Hover 11 | . . . 7 29 24 8 . 13 18 16 17 17 21 21 21 21 13 . . Flight 3 | . . . 23 . . 9 15 1 . . . . . . . . . 14 15 Device 11 | . . 22 18 15 15 8 7 10 11 11 6 13 10 11 18 17 11 6 15 Storage 9 | . 14 11 16 15 15 15 15 15 12 5 5 5 5 5 5 7 5 3 2 Processor 11 | . . . . 7 7 13 15 10 13 17 17 15 15 16 11 10 10 6 26 Hackware 10 | . . . . 6 7 7 7 7 8 17 17 17 21 18 19 21 17 2 5 Protection 1 | . 7 11 1 . . . . . . . 3 1 5 2 2 . . . . Energy Gun 5 | . 13 20 7 15 9 13 15 7 . . . . . . . . . 2 . Ballistic Gun 2 | . 14 . . . . . . 4 6 5 5 4 5 2 . . . . . Ballistic Cannon 1 | . . . . . . . . . . . 3 . . 4 9 7 2 . . Naked Turns . | . . . . . . . . . . . . . . . . . . . . Heaviest Build 60 | 13 31 44 44 30 30 30 24 29 36 38 46 52 51 55 55 53 60 37 43 Greatest Support 62 | 20 20 26 26 33 33 24 24 24 36 39 45 56 56 56 56 53 62 37 52 Greatest Overweight (x) 4 | . 2 2 1 . 1 4 . 1 1 . 1 1 . . . 1 3 1 1 Average Overweight (x) . | . . 1 . . . . . . . . . . . . . . . . . Largest Inventory Capacity 15 | 8 15 15 15 10 10 10 10 10 10 10 10 10 10 10 10 10 10 5 5 Average Capacity 9 | 7 14 15 10 10 10 10 10 10 10 10 10 10 10 10 10 10 8 5 5 Most Carried 15 | 2 15 15 15 10 10 10 10 10 10 10 10 10 10 10 10 10 10 5 5 Average Carried 8 | . 10 14 9 9 9 9 10 8 9 9 9 9 10 9 9 9 7 4 4 Final Capacity 15 | 8 15 15 10 10 10 10 10 10 10 10 10 10 10 10 10 10 5 5 5 Final Carried 15 | 2 15 15 10 9 10 10 10 10 10 10 9 10 10 10 10 8 5 5 5 Class Distribution -------------------- 36% | Mutant 28% | Hacker-Mutant 10% | Scavenger-Mutant 6% | Hacker-Scout 5% | Sprinter 4% | Hacker-Ninja 4% | Scavenger-Scout Dominant Class ---------------- Mutant | -10/Materials Mutant | -9/Materials Scavenger-Sprinter | -8/Materials Mutant | -7/Factory Mutant | -7/Lower Caves Scavenger-Mutant | -7/Lower Caves Scavenger-Mutant | -7/Data Miner Mutant | -6/Proximity Caves Mutant | -6/Factory Hacker-Ninja | -5/Factory Hacker-Mutant | -5/Extension Hacker-Mutant | -4/Factory Hacker-Mutant | -4/Upper Caves Scavenger-Mutant | -4/Upper Caves Hacker-Mutant | -4/Zhirov Hacker-Mutant | -3/Proximity Caves Hacker-Mutant | -3/Research Sprinter | -2/Research Scavenger-Scout | -1/Access Resources | -11 -10 -9 -8 -7 -7 -7 -7 -6 -6 -5 -5 -4 -4 -4 -4 -3 -3 -2 -1 ----------- Run | Scr Mat Mat Mat Fac Low Low Dat Pro Fac Fac Ext Fac Upp Upp Zhi Pro Res Res Acc Matter Collected 4413 | 195 291 270 210 . 120 200 . 106 78 139 420 639 20 277 266 207 366 359 250 Remotely 136 | . . . . . . . . . . . . . . . . . 36 . 100 Salvage Created 4891 | . 419 458 133 40 148 215 . 49 235 228 233 893 . 230 379 38 338 414 441 Parts 254 | . 31 38 5 4 11 8 . 1 11 8 12 46 . 8 . 2 16 35 18 Haulers Intercepted 17 | . 2 3 1 1 . . . . 1 2 2 2 . . . . . . 3 Recyclers Shooed 9 | . 2 2 . 1 . . . . . . 1 3 . . . . . . . Parts Field Recycled . | . . . . . . . . . . . . . . . . . . . . Retrieved Matter . | . . . . . . . . . . . . . . . . . . . . Parts Self-Destructed 37 | . . . . . 8 14 . 9 . . . . . 5 . 1 . . . Prevented 1 | . . . . . . . . 1 . . . . . . . . . . . Kills | -11 -10 -9 -8 -7 -7 -7 -7 -6 -6 -5 -5 -4 -4 -4 -4 -3 -3 -2 -1 ------- Run | Scr Mat Mat Mat Fac Low Low Dat Pro Fac Fac Ext Fac Upp Upp Zhi Pro Res Res Acc Combat Hostiles Destroyed 51 | . 7 7 1 . 5 4 . 1 1 . 1 6 . 3 . 1 5 8 1 Melee 8 | . . . . . . . . . . . . . . . . . 1 6 1 Guns 27 | . 7 7 1 . 5 3 . 1 1 . . 2 . . . . . . . Cannons 13 | . . . . . . 1 . . . . 1 3 . 3 . 1 4 . . AOE 2 | . . . . . . . . . . . . . . . . . . 2 . Classes Destroyed 15 | . 6 1 1 . 1 2 . . 2 . 1 . . 1 . . . . . Worker 8 | . 2 . 1 . . . . . 1 1 1 . . . . . . . 2 Builder 4 | . 1 . . . . . . . . . 1 2 . . . . . . . Tunneler 1 | . . . . . . . . . 1 . . . . . . . . . . Hauler 17 | . 2 3 1 1 . . . . 1 2 2 2 . . . . . . 3 Recycler 3 | . . 1 . . . . . . . . . 1 . . . . 1 . . Operator 2 | . . . . . . . . . 1 . . . . . . . 1 . . Watcher 19 | . 3 5 . . . . . . . . . 5 . . . . 3 2 1 Swarmer 25 | . 4 6 . . 4 2 . . . . . 1 . . . . 3 5 . Grunt 7 | . 3 1 . . . 1 . 1 . . . 1 . . . . . . . Sentry 8 | . . . 1 . . . . . 1 . . 2 . 1 . . 1 1 1 Hunter 2 | . . . . . . . . . . . . . . 2 . . . . . Programmer 7 | . . . . . 1 . . . . . . 2 . . . 1 1 2 . Behemoth 1 | . . . . . . . . . . . 1 . . . . . . . . Butcher 1 | . . . . . . 1 . . . . . . . . . . . . . Mutant 1 | . . . . . . 1 . . . . . . . . . . . . . Best Kill Streak 5 | . 5 5 1 1 4 2 . 1 2 1 1 3 . 2 . 1 4 3 2 Combat Bots Only 4 | . 3 3 1 . 4 2 . 1 1 . 1 2 . 2 . 1 3 3 1 Max Kills in Single Turn 2 | . 2 1 1 1 1 1 . 1 1 1 1 2 . 1 . 1 1 2 2 Gunslinging . | . . . . . . . . . . . . . . . . . . . . Exploded 2 | . . . . . . . . . . . . . . . . . . 2 . Melee 1 | . . . . . . . . . . . . . . . . . 1 1 1 Uniques/NPCs Destroyed . | . . . . . . . . . . . . . . . . . . . . Combat | -11 -10 -9 -8 -7 -7 -7 -7 -6 -6 -5 -5 -4 -4 -4 -4 -3 -3 -2 -1 -------- Run | Scr Mat Mat Mat Fac Low Low Dat Pro Fac Fac Ext Fac Upp Upp Zhi Pro Res Res Acc Damage Taken 9935 | . 203 118 31 90 264 130 . 596 154 . 837 850 . 1259 . 171 2810 1361 1061 Core 2786 | . 29 32 . 40 80 31 . 98 41 . 118 78 . 198 . 23 1289 513 216 Absorbed by Shields 164 | . . . . . . . . . . . . 27 . . . . 137 . . Regen/Repaired (Parts) 337 | . 61 . . . . . . . 31 . 55 94 61 35 . . . . . Core Remaining (%) 76 | 100 88 92 100 . . . . 64 95 . 88 . . . . 74 . 64 78 Volleys Fired 313 | . 57 41 8 7 13 17 . 21 6 5 21 55 . 18 5 9 19 4 7 Largest 2 | . 2 2 2 2 2 2 . 2 2 1 2 2 . 2 2 2 2 1 1 Hottest 126 | . 70 126 126 126 126 126 . 126 58 28 81 125 . 125 123 123 123 65 65 Shots Fired 552 | . 109 82 16 14 26 34 . 30 10 5 41 79 . 37 10 17 31 4 7 Gun 409 | . 109 82 16 14 26 33 . 23 10 5 20 46 . 18 . . . 3 4 Cannon 133 | . . . . . . 1 . 1 . . 21 33 . 19 10 17 31 . . Launcher 10 | . . . . . . . . 6 . . . . . . . . . 1 3 Special . | . . . . . . . . . . . . . . . . . . . . Kinetic 251 | . 57 . . . . 2 . 1 10 5 41 56 . 21 10 17 31 . . Thermal 287 | . 52 82 16 14 26 32 . 23 . . . 23 . 16 . . . 3 . Explosive 4 | . . . . . . . . . . . . . . . . . . 1 3 Electromagnetic 10 | . . . . . . . . 6 . . . . . . . . . . 4 Robot Hit Streak 13 | . 10 7 10 2 5 6 . 9 5 1 5 10 . 4 11 4 13 2 2 Robot Miss Streak 8 | . 4 6 2 2 3 8 . 1 1 3 3 3 . 3 . 3 5 2 . Penetration Max 1 | . . . . . . . . . . . . 1 . . . . . . . Secondary Targets 6 | . 3 1 . . 2 . . . . . . . . . . . . . . Max Gunslinging Chain 1 | . 1 1 . . 1 . . . . . . . . . . . . . . Shots Hit Robots 402 | . 59 42 11 7 16 16 . 25 15 14 33 56 . 19 18 9 30 18 14 Core Hits 159 | . 22 16 5 2 9 7 . 6 7 5 11 26 . 6 1 3 13 10 10 Critical Kills 8 | . . . . . . . . . . . . 5 . 1 . 1 1 . . Critical Parts Destroyed 15 | . . . . . . . . . . . . 4 . 2 5 2 2 . . Critical Strikes 54 | . 5 1 1 . . 1 . 1 1 1 2 11 . 4 7 3 6 7 3 Burn 9 | . 5 1 1 . . 1 . 1 . . . . . . . . . . . Meltdown 1 | . . . . . . . . . . . . 1 . . . . . . . Destroy 24 | . . . . . . . . . . . . 8 . 4 6 3 3 . . Blast 5 | . . . . . . . . . . . 1 1 . . . . 3 . . Smash 1 | . . . . . . . . . . . . . . . 1 . . . . Sever 4 | . . . . . . . . . 1 1 1 1 . . . . . . . Impale 10 | . . . . . . . . . . . . . . . . . . 7 3 Melee Attacks 212 | . . . . . . . . . 24 35 8 11 . . 8 . 32 59 35 Impact 37 | . . . . . . . . . . . . . . . 8 . 29 . . Slashing 78 | . . . . . . . . . 24 35 8 11 . . . . . . . Piercing 97 | . . . . . . . . . . . . . . . . . 3 59 35 Sneak Attacks 17 | . . . . . . . . . 4 3 2 . . . . . 1 3 4 Combat Hostiles . | . . . . . . . . . . . . . . . . . . . . Follow-up Attacks . | . . . . . . . . . . . . . . . . . . . . Damage Inflicted 13695 | . 644 759 190 119 291 314 . 504 645 622 1136 2019 . 494 1060 245 1504 1496 1653 Guns 4349 | . 644 759 190 119 291 289 . 374 148 39 320 919 . 197 . . . 60 . Cannons 3026 | . . . . . . 25 . 33 . . 463 883 . 297 227 245 853 . . Explosions 1013 | . . . . . . . . 97 . . . . . . . . . 326 590 Melee 5295 | . . . . . . . . . 497 583 353 217 . . 833 . 639 1110 1063 Ramming 12 | . . . . . . . . . . . . . . . . . 12 . . Kinetic 4080 | . 239 . . . . 45 . 33 148 39 783 1250 . 218 227 245 853 . . Thermal 3295 | . 405 759 190 119 291 269 . 374 . . . 552 . 276 . . . 60 . Explosive 916 | . . . . . . . . . . . . . . . . . . 326 590 Electromagnetic 97 | . . . . . . . . 97 . . . . . . . . . . . Impact 1285 | . . . . . . . . . . . . . . . 833 . 452 . . Slashing 1650 | . . . . . . . . . 497 583 353 217 . . . . . . . Piercing 2360 | . . . . . . . . . . . . . . . . . 187 1110 1063 Highest Corruption 15 | . . . . . . . . . . 5 5 4 4 4 4 7 14 5 15 Average Corruption 6 | . . . . . . . . . . 5 5 3 4 4 4 5 7 2 14 Corruption Purged . | . . . . . . . . . . . . . . . . . . . . Corruption Blocked . | . . . . . . . . . . . . . . . . . . . . Effects 75 | . . . . . . . . . . . 5 11 7 7 5 11 13 1 15 Message Errors 14 | . . . . . . . . . . . 1 1 2 . 2 4 2 . 2 Matter Fused 18 | . . . . . . . . . . . 1 3 1 3 . 2 4 . 4 Heat Flow Errors 7 | . . . . . . . . . . . . 1 . . 3 2 . . 1 Energy Discharges 9 | . . . . . . . . . . . . 3 2 . . 1 1 . 2 Parts Rejected 1 | . . . . . . . . . . . . 1 . . . . . . . Data Loss (minor) 13 | . . . . . . . . . . . . . 2 1 . 1 4 1 4 Data Loss (major) 4 | . . . . . . . . . . . . . . 2 . . 1 . 1 Misfires 6 | . . . . . . . . . . . 2 1 . 1 . 1 1 . . Alerts 1 | . . . . . . . . . . . . 1 . . . . . . . Misdirections 1 | . . . . . . . . . . . . . . . . . . . 1 Weapon Failures 1 | . . . . . . . . . . . 1 . . . . . . . . Overload Shots . | . . . . . . . . . . . . . . . . . . . . Overflow Damage 1432 | . . . . . . . . . 139 4 4 12 . . 666 . 70 353 184 Projectiles 51 | . . . . . . . . . . . 4 12 . . . . 35 . . Explosions 52 | . . . . . . . . . . . . . . . . . . . 52 Melee 1329 | . . . . . . . . . 139 4 . . . . 666 . 35 353 132 Knockbacks 8 | . . . . . . . . . . . . 2 . . . . 6 . . Impact 4 | . . . . . . . . . . . . . . . . . 4 . . Kinetic 4 | . . . . . . . . . . . . 2 . . . . 2 . . Secondary . | . . . . . . . . . . . . . . . . . . . . Self-Inflicted Damage 6 | . . . . . . . . . . . . . . . . . 6 . . Shots . | . . . . . . . . . . . . . . . . . . . . Rammed 1 | . . . . . . . . . . . . . . . . . 1 . . Targets Rammed 1 | . . . . . . . . . . . . . . . . . 1 . . Kicked . | . . . . . . . . . . . . . . . . . . . . Crushed . | . . . . . . . . . . . . . . . . . . . . Highest Temperature 420 | . 420 305 81 110 342 330 . 8 42 . 334 350 . 288 234 144 54 . 148 Average Temperature 110 | . 105 59 30 52 163 141 . 3 16 . 188 132 . 144 101 69 23 . 89 Received Heat Transfer 570 | . 54 . 9 9 . 18 . 42 . . 102 147 . 63 . . 18 81 27 Effects 18 | . 5 . . . . 2 . . . . 1 10 . . . . . . . Shutdowns 2 | . 1 . . . . . . . . . 1 . . . . . . . . Energy Bleed 3 | . . . . . . 1 . . . . . 2 . . . . . . . Interference 11 | . 3 . . . . . . . . . . 8 . . . . . . . Matter Decay 1 | . 1 . . . . . . . . . . . . . . . . . . Short Circuit 1 | . . . . . . 1 . . . . . . . . . . . . . Siege Activations . | . . . . . . . . . . . . . . . . . . . . Robots Corrupted . | . . . . . . . . . . . . . . . . . . . . Combat Hostiles . | . . . . . . . . . . . . . . . . . . . . Parts Fried 3 | . . . . . . . . . . . . . . . 1 . 2 . . Impact Corruptions 25 | . . . . . . . . . . . . . . . 22 . 3 . . Robots Melted 1 | . . . . . . . . . . . . 1 . . . . . . . Combat Hostiles 1 | . . . . . . . . . . . . 1 . . . . . . . Parts Melted 14 | . 1 3 2 . 3 1 . . . . . 4 . . . . . . . Heat Transferred 7030 | . 1554 1739 481 259 592 666 . 814 . . . 555 . 296 . . . 74 . Parts Sabotaged . | . . . . . . . . . . . . . . . . . . . . Parts Stolen . | . . . . . . . . . . . . . . . . . . . . Parts Stripped . | . . . . . . . . . . . . . . . . . . . . Power Chain Reactions . | . . . . . . . . . . . . . . . . . . . . Missiles Intercepted . | . . . . . . . . . . . . . . . . . . . . Alert | -11 -10 -9 -8 -7 -7 -7 -7 -6 -6 -5 -5 -4 -4 -4 -4 -3 -3 -2 -1 ------- Run | Scr Mat Mat Mat Fac Low Low Dat Pro Fac Fac Ext Fac Upp Upp Zhi Pro Res Res Acc Peak Influence 634 | . 209 288 104 85 . . . . 181 223 142 355 . . . . 361 634 605 Initial 388 | . . . 42 4 . . . . . 50 109 64 . . . . 90 52 388 Average 187 | . 75 107 37 23 . . . . 47 136 120 196 . . . . 180 365 462 Maximum Alert Level 2 | . 1 1 . . . . . . . 1 . 1 . . . . 1 2 2 Low Security (%) 59 | 100 83 84 100 100 . . . . 100 68 100 47 . . . . 50 18 . Level 1 24 | . 16 15 . . . . . . . 31 . 52 . . . . 49 27 9 Level 2 16 | . . . . . . . . . . . . . . . . . . 54 90 Level 3 . | . . . . . . . . . . . . . . . . . . . . Level 4 . | . . . . . . . . . . . . . . . . . . . . Level 5 . | . . . . . . . . . . . . . . . . . . . . High Security . | . . . . . . . . . . . . . . . . . . . . Max Security . | . . . . . . . . . . . . . . . . . . . . Squads Dispatched 24 | . . . . 3 . . . . 2 1 . 3 . . . . 5 6 4 Investigation 8 | . . . . 1 . . . . 1 . . 1 . . . . . 4 1 Extermination 6 | . . . . . . . . . . 1 . 1 . . . . 1 1 2 Reinforcement 10 | . . . . 2 . . . . 1 . . 1 . . . . 4 1 1 Assault . | . . . . . . . . . . . . . . . . . . . . Garrison . | . . . . . . . . . . . . . . . . . . . . Intercept . | . . . . . . . . . . . . . . . . . . . . Searches Triggered 3 | . . . . . . . . . . . . . . . . . . 2 1 Data Miner Redirects 4 | . . . . . . . . . . . . 1 . . . . . 2 1 Construction Impeded 1 | . . . . . . . . . . . . . . . . . . . 1 Haulers Reinforced 1 | . . . . 1 . . . . . . . . . . . . . . . Active Scanning Responses . | . . . . . . . . . . . . . . . . . . . . Cargo Convoy Interrupts . | . . . . . . . . . . . . . . . . . . . . Stealth | -11 -10 -9 -8 -7 -7 -7 -7 -6 -6 -5 -5 -4 -4 -4 -4 -3 -3 -2 -1 --------- Run | Scr Mat Mat Mat Fac Low Low Dat Pro Fac Fac Ext Fac Upp Upp Zhi Pro Res Res Acc Distress Signals 11 | . 3 2 . 1 . . . . . . . 1 . . . . 1 2 1 Communications Jammed 75 | . . . . . . . . . . 1 1 70 . . . . 3 . . Distress Signals 75 | . . . . . . . . . . 1 1 70 . . . . 3 . . Times Spotted 214 | . 15 16 3 4 4 9 . 3 8 5 7 15 . 5 . 6 37 54 23 Peak Tracking Total 15 | . 3 4 3 5 3 5 . 2 3 4 5 4 . 3 . 5 15 14 11 Tactical Retreats 35 | . . 1 . 1 . . . . 3 1 . 2 . . . 3 7 11 6 Traps | -11 -10 -9 -8 -7 -7 -7 -7 -6 -6 -5 -5 -4 -4 -4 -4 -3 -3 -2 -1 ------- Run | Scr Mat Mat Mat Fac Low Low Dat Pro Fac Fac Ext Fac Upp Upp Zhi Pro Res Res Acc Traps Triggered 11 | . 3 . . . . . . . 1 1 . 1 . . . . 2 3 . Indirectly . | . . . . . . . . . . . . . . . . . . . . Trap Hack Attempts . | . . . . . . . . . . . . . . . . . . . . Triggered . | . . . . . . . . . . . . . . . . . . . . Disarmed . | . . . . . . . . . . . . . . . . . . . . Reprogrammed . | . . . . . . . . . . . . . . . . . . . . Reused . | . . . . . . . . . . . . . . . . . . . . Traps Extracted . | . . . . . . . . . . . . . . . . . . . . Installed . | . . . . . . . . . . . . . . . . . . . . Triggered 1 | . . . . . . . . . . . . . . . . 1 . . . Machines | -11 -10 -9 -8 -7 -7 -7 -7 -6 -6 -5 -5 -4 -4 -4 -4 -3 -3 -2 -1 ---------- Run | Scr Mat Mat Mat Fac Low Low Dat Pro Fac Fac Ext Fac Upp Upp Zhi Pro Res Res Acc Machines Disabled 7 | . . 2 . . . . . . . . . 2 . . . . . 1 2 Max in Single Turn 2 | . . 1 . . . . . . . . . 2 . . . . . 1 1 Garrison Access 2 | . . . . . . . . . . . . . . . . . . 2 . Machines Sabotaged . | . . . . . . . . . . . . . . . . . . . . Garrisons Compromised . | . . . . . . . . . . . . . . . . . . . . Overloaded Fab Kills . | . . . . . . . . . . . . . . . . . . . . Hacking | -11 -10 -9 -8 -7 -7 -7 -7 -6 -6 -5 -5 -4 -4 -4 -4 -3 -3 -2 -1 --------- Run | Scr Mat Mat Mat Fac Low Low Dat Pro Fac Fac Ext Fac Upp Upp Zhi Pro Res Res Acc Machines Accessed 79 | . 7 3 5 3 . . 4 . 6 3 . 6 1 2 9 . 5 14 11 Terminals 45 | . 6 2 5 2 . . . . 3 3 . 4 . 1 . . 3 8 8 Fabricators 5 | . . . . . . . . . 1 . . 2 . . . . . 2 . Repair Stations 5 | . 1 . . . . . . . 1 . . . . . . . 1 1 1 Recycling Units . | . . . . . . . . . . . . . . . . . . . . Scanalyzers 4 | . . 1 . 1 . . . . 1 . . . . . . . 1 . . Garrison Access 5 | . . . . . . . . . . . . . . . . . . 3 2 Total Hacks 327 | . 26 22 19 15 . . 32 . 25 17 . 27 1 2 48 . 49 24 20 Successful 206 | . 17 17 11 11 . . 32 . 13 8 . 9 1 2 48 . 26 8 3 Failed 120 | . 8 5 8 4 . . . . 12 9 . 18 . . . . 23 16 17 Catastrophic 23 | . . 1 . 1 . . . . 2 1 . 4 . . . . 4 5 5 Database Lockouts 1 | . 1 . . . . . . . . . . . . . . . . . . Manual 81 | . 17 6 5 6 . . . . 5 10 . 11 . . . . 14 4 3 Terminals 168 | . 24 9 19 8 . . . . 12 17 . 23 . 1 . . 25 15 15 Fabricators 9 | . . . . . . . . . 2 . . 4 . . . . . 3 . Repair Stations 14 | . 2 . . . . . . . 3 . . . . . . . 5 1 3 Recycling Units . | . . . . . . . . . . . . . . . . . . . . Scanalyzers 47 | . . 13 . 7 . . . . 8 . . . . . . . 19 . . Garrison Access 7 | . . . . . . . . . . . . . . . . . . 5 2 Terminal Hacks 131 | . 11 2 8 2 . . 32 . 2 5 . 4 1 2 48 . 9 2 3 Record 48 | . . . . . . . 11 . . . . . . 1 36 . . . . Part Schematic 16 | . 1 . . . . . 11 . . . . . . . 4 . . . . Robot Schematic 7 | . . . . . . . 7 . . . . . . . . . . . . Robot Analysis 8 | . 1 . . . . . . . . 2 . . . . 4 . . 1 . Prototype ID Bank 12 | . 1 1 1 1 . . 3 . . . . 1 . . 4 . . . . Open Door 2 | . . . . . . . . . . . . . 1 1 . . . . . Level Access Points 1 | . . . . . . . . . . . . . . . . . . . 1 Branch Access Points 2 | . . . . . . . . . . 1 . 1 . . . . . . . Machine Index 1 | . . . . . . . . . . . . . . . . . 1 . . Terminal Index 8 | . 1 1 1 1 . . . . 1 1 . . . . . . 1 . 1 Alert Level 2 | . 1 . . . . . . . . . . . . . . . 1 . . Unreport Threat 6 | . 2 . 1 . . . . . . . . 1 . . . . 2 . . Locate Traps 8 | . 2 . 1 . . . . . 1 1 . . . . . . 1 1 1 Dispatch Records 1 | . . . 1 . . . . . . . . . . . . . . . . Patrol Status 1 | . . . 1 . . . . . . . . . . . . . . . . Registered Components 2 | . 1 . 1 . . . . . . . . . . . . . . . . Registered Prototypes 1 | . . . . . . . . . . . . . . . . . 1 . . Zone Layout 5 | . 1 . 1 . . . . . . . . 1 . . . . 2 . . Fabricator Hacks 6 | . . . . . . . . . 2 . . 2 . . . . . 2 . Load Schematic 3 | . . . . . . . . . 1 . . 1 . . . . . 1 . Build 3 | . . . . . . . . . 1 . . 1 . . . . . 1 . Repair Station Hacks 7 | . 2 . . . . . . . 2 . . . . . . . 3 . . Scan Component 4 | . 1 . . . . . . . 1 . . . . . . . 2 . . Repair 3 | . 1 . . . . . . . 1 . . . . . . . 1 . . Recycling Unit Hacks . | . . . . . . . . . . . . . . . . . . . . Scanalyzer 37 | . . 13 . 7 . . . . 6 . . . . . . . 11 . . Insert Component 18 | . . 6 . 2 . . . . 3 . . . . . . . 7 . . Analyze 19 | . . 7 . 5 . . . . 3 . . . . . . . 4 . . Garrison Access Hacks 2 | . . . . . . . . . . . . . . . . . . 2 . Seal Access 2 | . . . . . . . . . . . . . . . . . . 2 . Unauthorized Hacks 23 | . 4 2 3 2 . . . . 1 3 . 3 . . . . 3 2 . Terminals 22 | . 4 2 3 2 . . . . 1 3 . 3 . . . . 3 1 . Track 1 | . . . . . . . . . . 1 . . . . . . . . . Assimilate 2 | . 1 . . . . . . . . . . 1 . . . . . . . Botnet 13 | . 2 1 2 1 . . . . 1 1 . 2 . . . . 2 1 . Operators 6 | . 1 1 1 1 . . . . . 1 . . . . . . 1 . . Fabricators 1 | . . . . . . . . . . . . . . . . . . 1 . Overload 1 | . . . . . . . . . . . . . . . . . . 1 . Repair Stations . | . . . . . . . . . . . . . . . . . . . . Recycling Units . | . . . . . . . . . . . . . . . . . . . . Scanalyzers . | . . . . . . . . . . . . . . . . . . . . Garrison Access . | . . . . . . . . . . . . . . . . . . . . Data Cores Recovered . | . . . . . . . . . . . . . . . . . . . . Used . | . . . . . . . . . . . . . . . . . . . . Hacking Detections 54 | . 4 3 5 1 . . . . 5 3 . 6 . . . . 4 12 11 Full Trace Events 6 | . . 1 . . . . . . 1 . . 1 . . . . . 2 1 Feedback Events . | . . . . . . . . . . . . . . . . . . . . Feedback Blocked . | . . . . . . . . . . . . . . . . . . . . Robot Schematics Acquired 7 | . . . . . . . 7 . . . . . . . . . . . . Robots Built . | . . . . . . . . . . . . . . . . . . . . Authchips . | . . . . . . . . . . . . . . . . . . . . Time . | . . . . . . . . . . . . . . . . . . . . Total Robot Build Rating . | . . . . . . . . . . . . . . . . . . . . Part Schematics Acquired 31 | . 1 6 . 2 . . 11 . 3 . . . . . 4 . 4 . . Parts Built 5 | . . . . . . . . . 1 . . 2 . . . . . 2 . Authchips . | . . . . . . . . . . . . . . . . . . . . Time 375 | . . . . . . . . . 152 . . 106 . . . . . 117 . Total Part Build Rating 31 | . . . . . . . . . 5 . . 12 . . . . . 14 . Parts Repaired 3 | . 1 . . . . . . . 1 . . . . . . . 1 . . Time 114 | . 26 . . . . . . . 60 . . . . . . . 28 . . Parts Recycled . | . . . . . . . . . . . . . . . . . . . . Recycled Matter . | . . . . . . . . . . . . . . . . . . . . Retrieved Matter . | . . . . . . . . . . . . . . . . . . . . Retrieved Components . | . . . . . . . . . . . . . . . . . . . . Parts Scanalyzed 17 | . . 6 . 2 . . . . 3 . . . . . . . 6 . . Part Schematics Acquired 15 | . . 6 . 2 . . . . 3 . . . . . . . 4 . . Parts Damaged . | . . . . . . . . . . . . . . . . . . . . Bothacking | -11 -10 -9 -8 -7 -7 -7 -7 -6 -6 -5 -5 -4 -4 -4 -4 -3 -3 -2 -1 ------------ Run | Scr Mat Mat Mat Fac Low Low Dat Pro Fac Fac Ext Fac Upp Upp Zhi Pro Res Res Acc Used RIF Installer . | . . . . . . . . . . . . . . . . . . . . Robots Hacked . | . . . . . . . . . . . . . . . . . . . . Non-combat . | . . . . . . . . . . . . . . . . . . . . Combat . | . . . . . . . . . . . . . . . . . . . . Robot Hacks Applied . | . . . . . . . . . . . . . . . . . . . . Relay Couplers Released . | . . . . . . . . . . . . . . . . . . . . Fabnet Peak Effective % . | . . . . . . . . . . . . . . . . . . . . Robots Rewired . | . . . . . . . . . . . . . . . . . . . . Allies Hacked . | . . . . . . . . . . . . . . . . . . . . Hacks Repelled . | . . . . . . . . . . . . . . . . . . . . Allies | -11 -10 -9 -8 -7 -7 -7 -7 -6 -6 -5 -5 -4 -4 -4 -4 -3 -3 -2 -1 -------- Run | Scr Mat Mat Mat Fac Low Low Dat Pro Fac Fac Ext Fac Upp Upp Zhi Pro Res Res Acc Total Allies 3 | . 1 . . . . . . 1 . . . 1 . . . . . . . Largest Group 1 | . 1 1 1 1 . . . 1 1 . . 1 1 1 . . . . . Highest-Rated Group 96 | . 10 10 9 9 . . . 96 96 . . 26 26 26 . . . . . Highest-Rated Ally 96 | . 10 10 9 9 . . . 96 96 . . 26 26 26 . . . . . Total Orders 3 | . . . . . . . . . . . . . . 3 . . . . . STAY 2 | . . . . . . . . . . . . . . 2 . . . . . FOLLOW 1 | . . . . . . . . . . . . . . 1 . . . . . Ally Attacks 26 | . . . . . . . . 18 8 . . . . . . . . . . Total Damage 1046 | . . . . . . . . 805 241 . . . . . . . . . . Kills 5 | . . . . . . . . 4 1 . . . . . . . . . . Allies Corrupted . | . . . . . . . . . . . . . . . . . . . . Allies Melted . | . . . . . . . . . . . . . . . . . . . . Intel | -11 -10 -9 -8 -7 -7 -7 -7 -6 -6 -5 -5 -4 -4 -4 -4 -3 -3 -2 -1 ------- Run | Scr Mat Mat Mat Fac Low Low Dat Pro Fac Fac Ext Fac Upp Upp Zhi Pro Res Res Acc Robot Analysis Total 8 | . 1 . . . . . . . . 2 . . . . 4 . . 1 . Derelict Logs Recovered 8 | . . . . . 1 3 . 1 . . . . 2 1 . . . . . Drone Launches . | . . . . . . . . . . . . . . . . . . . . Drone Recoveries . | . . . . . . . . . . . . . . . . . . . . Exploration | -11 -10 -9 -8 -7 -7 -7 -7 -6 -6 -5 -5 -4 -4 -4 -4 -3 -3 -2 -1 ------------- Run | Scr Mat Mat Mat Fac Low Low Dat Pro Fac Fac Ext Fac Upp Upp Zhi Pro Res Res Acc Turns Passed 7821 | 34 536 436 169 166 281 760 67 702 498 298 264 784 186 260 246 368 644 588 534 Spaces Moved 9874 | 30 351 245 236 217 515 905 75 524 567 404 163 707 269 257 287 503 725 1440 1454 Core 241 | 1 . . . . . . . . . . . . . . . . 170 70 . Treads . | . . . . . . . . . . . . . . . . . . . . Legs 1 | . . . . . . . . 1 . . . . . . . . . . . Wheels 1206 | 29 351 245 6 . . 465 75 35 . . . . . . . . . . . Hover 5364 | . . . 79 217 515 429 . 488 567 404 163 707 269 257 287 503 431 48 . Flight 3062 | . . . 151 . . 11 . . . . . . . . . . 124 1322 1454 Fastest Speed 14 | 50 80 95 31 40 40 42 90 46 45 45 48 58 68 68 63 58 40 14 17 Average Speed 51 | 79 94 108 37 40 43 69 90 102 46 46 56 67 68 68 65 61 54 21 19 Slowest Speed 355 | 80 110 110 111 42 102 355 90 190 106 48 104 126 68 68 68 123 200 110 107 Overloaded Moves . | . . . . . . . . . . . . . . . . . . . . Propulsion Burnouts . | . . . . . . . . . . . . . . . . . . . . Robots Hopped 49 | . . . 2 . . . . . . . . . . . . . 13 20 14 Cave-ins Triggered 1 | . . . . . . . . . . . . . . . . . . . 1 Teleports 1 | . . . . . . . . . . . . . . . . . . . 1 Exploration Rate (%) 41 | 3 69 22 25 7 70 81 72 69 14 14 26 15 59 54 63 57 27 43 34 Regions Visited 19 Branch Regions 9 Pre-discovered Areas 6 | . . . . . . . 1 1 . . . . . 1 3 . . . . Known Exits Taken 8 | . . . . . . . . 1 1 1 1 1 1 . . . 1 1 . Unknown Exits Taken 11 | 1 1 1 1 1 1 1 1 . . . . . . 1 1 1 . . . Scrap Searched 16 | . . . . . 3 7 . 2 . . . . 1 2 . 1 . . . Spaces Dug 97 | . . . . . . . . . 14 16 . 4 . . . . 6 40 17 Terrain Destroyed 198 | . . . . . . . . . 14 16 4 35 . 19 . 10 15 51 34 Melee 93 | . . . . . . . . . 14 16 . 2 . . . . 4 40 17 Projectile 66 | . . . . . . . . . . . 4 22 . 19 . 10 11 . . AOE 39 | . . . . . . . . . . . . 11 . . . . . 11 17 Terrain Rammed . | . . . . . . . . . . . . . . . . . . . . Walls Destroyed . | . . . . . . . . . . . . . . . . . . . . Machines Disabled . | . . . . . . . . . . . . . . . . . . . . Actions | -11 -10 -9 -8 -7 -7 -7 -7 -6 -6 -5 -5 -4 -4 -4 -4 -3 -3 -2 -1 --------- Run | Scr Mat Mat Mat Fac Low Low Dat Pro Fac Fac Ext Fac Upp Upp Zhi Pro Res Res Acc Total 11646 | 37 452 335 305 281 546 1002 74 657 765 469 279 926 271 304 327 550 901 1556 1609 Wait 717 | . 17 17 13 40 10 35 . 96 142 1 71 60 2 16 . 23 79 16 79 Move 9763 | 29 350 244 231 216 514 904 74 523 566 402 162 706 268 256 286 502 702 1402 1426 Hop 42 | . . . 2 . . . . . . . . . . . . . 10 17 13 Pick Up 118 | 2 14 8 9 4 . 10 . 4 9 7 . 20 . 2 6 3 11 7 2 Fast Attach 126 | 6 10 8 4 5 2 6 . 2 4 1 2 12 . 6 5 . 8 29 16 Attach 74 | . . 3 9 1 . 1 . 6 1 2 1 14 . 1 2 5 11 5 12 Detach 43 | . . . 8 . 1 1 . 2 . . . 3 . 1 1 1 9 4 12 Swap 82 | . 1 1 4 1 3 12 . 3 5 9 13 13 1 1 5 2 4 2 2 Drop 136 | . 3 13 17 7 3 15 . . 8 6 1 22 . 3 9 5 8 11 5 Fire 313 | . 57 41 8 7 13 17 . 21 6 5 21 55 . 18 5 9 19 4 7 Melee 212 | . . . . . . . . . 24 35 8 11 . . 8 . 32 59 35 Ram . | . . . . . . . . . . . . . . . . . . . . Kick . | . . . . . . . . . . . . . . . . . . . . Crush . | . . . . . . . . . . . . . . . . . . . . Escape Stasis 19 | . . . . . . . . . . 1 . 10 . . . . 8 . . Rewire 1 | . . . . . . 1 . . . . . . . . . . . . . Trap . | . . . . . . . . . . . . . . . . . . . . Miscellaneous . | . . . . . . . . . . . . . . . . . . . . Route ------- -11/Scrapyard -10/Materials (discovered 2 exits: *Mat x2) -9/Materials -8/Materials -7/Factory -7/Lower Caves -7/Lower Caves (discovered 2 exits: Fac / *Dat) -7/Data Miner -6/Proximity Caves -6/Factory (discovered 2 exits: *Fac / Low) -5/Factory (discovered 4 exits: Upp x2 / *Ext x2) -5/Extension -4/Factory (discovered 2 exits: *Upp x2) -4/Upper Caves -4/Upper Caves (discovered 2 exits: *Res / *Zhi) -4/Zhirov -3/Proximity Caves -3/Research -2/Research (discovered 2 exits: *Acc / [*Qua]) -1/Access To Epsilon Eridani History --------- Turn | Location | Event 24 | -11/Scrapyard | Discovered new exit (range 15) 35 | -11/Scrapyard | Entered Materials 303 | -10/Materials | Build established: Mutant 390 | -10/Materials | Repaired Lgt. Armor Plating 426 | -10/Materials | Discovered new exit (range 7) 532 | -10/Materials | Discovered new exit (range 11) 549 | -10/Materials | Central database locked down 571 | -10/Materials | Entered another Materials area 571 | -9/Materials | Accompanied by 1 ally 571 | -9/Materials | Evolved 2 slots: Utility x2 992 | -9/Materials | Discovered new exit (range 10) 1007 | -9/Materials | Entered another Materials area 1007 | -8/Materials | Accompanied by 1 ally 1007 | -8/Materials | Evolved 2 slots: Propulsion x2 1171 | -8/Materials | Discovered new exit (range 5) 1176 | -8/Materials | Entered Factory 1176 | -7/Factory | Accompanied by 1 ally 1176 | -7/Factory | Evolved 2 slots: Utility x2 1307 | -7/Factory | Discovered new exit (range 12) 1342 | -7/Factory | Entered Lower Caves 1536 | -7/Lower Caves | Learned Factory stockpile data 1617 | -7/Lower Caves | Discovered new exit (range 3) 1623 | -7/Lower Caves | Entered another Lower Caves area 1631 | -7/Lower Caves | Identified exit to Factory 1760 | -7/Lower Caves | Encountered a Warlord checkpoint 1772 | -7/Lower Caves | Learned Factory emergency access door positions 2196 | -7/Lower Caves | Build established: Scavenger-Mutant 2364 | -7/Lower Caves | Discovered new exit (range 5) 2365 | -7/Lower Caves | Learned location of 1 exit from Factory 2383 | -7/Lower Caves | Entered Data Miner 2383 | -7/Data Miner | Discovered new exit (range 6) 2397 | -7/Data Miner | Met Data Miner 2416 | -7/Data Miner | Learned location of Section 7 (-2) 2416 | -7/Data Miner | Acquired the access code to Warlord's prototype stash 2429 | -7/Data Miner | Received God Mode back door access code from Data Miner 2450 | -7/Data Miner | Entered Proximity Caves 2478 | -6/Proximity Caves | Spotted B-75 Beast 2512 | -6/Proximity Caves | Escorted by Enhanced Grunt 2542 | -6/Proximity Caves | Allies destroyed B-75 Beast 2566 | -6/Proximity Caves | Lost 8 parts (1p4n1u2w) 2801 | -6/Proximity Caves | Build established: Mutant 3120 | -6/Proximity Caves | Discovered exit to Factory (range 6) 3152 | -6/Proximity Caves | Entered Factory 3152 | -6/Factory | Accompanied by 1 ally 3152 | -6/Factory | Evolved 2 slots: Power x1, Utility x1 3153 | -6/Factory | Identified exit to Lower Caves 3263 | -6/Factory | Repaired Aerolev Unit 3544 | -6/Factory | Fabricated Lgt. Regenerative Plating? 3640 | -6/Factory | Discovered new exit (range 8) 3650 | -6/Factory | Identified exit to Factory 3650 | -6/Factory | Entered another Factory area 3650 | -5/Factory | Evolved 2 slots: Utility x2 3863 | -5/Factory | Identified exit to Upper Caves 3863 | -5/Factory | Identified exit to Extension 3948 | -5/Factory | Entered Extension 4011 | -5/Extension | Spotted B-75 Beast 4062 | -5/Extension | Spotted B-75 Beast 4092 | -5/Extension | Destroyed B-75 Beast 4098 | -5/Extension | Disrupted transfer network 4121 | -5/Extension | Lost 3 parts (2p1u) 4211 | -5/Extension | Discovered new exit (range 3) 4211 | -5/Extension | Identified exit to Factory 4212 | -5/Extension | Entered Factory 4212 | -4/Factory | Evolved 2 slots: Utility x2 4400 | -4/Factory | Incoming investigation squad redirected 4481 | -4/Factory | Fabricated Cmb. Gravmag System (x2) 4484 | -4/Factory | Lost 4 parts (1n2u1w) 4640 | -4/Factory | Lost 3 parts (1n2u) 4660 | -4/Factory | Identified exit to Upper Caves 4912 | -4/Factory | Build established: Hacker-Mutant 4996 | -4/Factory | Entered Upper Caves 4996 | -4/Upper Caves | Accompanied by 1 ally 5064 | -4/Upper Caves | Learned location of 1 exit from Research 5080 | -4/Upper Caves | Identified exit to Upper Caves 5182 | -4/Upper Caves | Entered another Upper Caves area 5182 | -4/Upper Caves | Accompanied by 1 ally 5186 | -4/Upper Caves | Discovered new exit (range 5) 5247 | -4/Upper Caves | Attracted the attention of an 0b10 checkpoint 5314 | -4/Upper Caves | Learned location of Armory (-3) 5341 | -4/Upper Caves | Lost 5 parts (1p3u1w) 5418 | -4/Upper Caves | Discovered new exit (range 20) 5442 | -4/Upper Caves | Entered Zhirov 5442 | -4/Zhirov | Discovered new exit (range 3) 5455 | -4/Zhirov | Met Zhirov 5467 | -4/Zhirov | Learned location of Quarantine (-2) 5467 | -4/Zhirov | Learned location of Testing (-3) 5467 | -4/Zhirov | Learned location of Command (-1) 5480 | -4/Zhirov | Zhirov requested help retrieving the SGEMP Prototype 5495 | -4/Zhirov | Found Alien Artifact 5496 | -4/Zhirov | Identified Integrated Dissipator 5496 | -4/Zhirov | Installed Integrated Dissipator, increased core heat dissipation (+20) 5509 | -4/Zhirov | Found Alien Artifact 5688 | -4/Zhirov | Entered Proximity Caves 5693 | -3/Proximity Caves | Spotted B-86 Titan 6022 | -3/Proximity Caves | Attracted the attention of an 0b10 checkpoint 6042 | -3/Proximity Caves | Discovered new exit (range 19) 6056 | -3/Proximity Caves | Entered Research 6056 | -3/Research | Evolved 2 slots: Propulsion x1, Utility x1 6057 | -3/Research | Identified exit to Research 6190 | -3/Research | Identified Transdimensional Reconstructor 6216 | -3/Research | Found Prototype Processor 6217 | -3/Research | Identified Spectral Analyzer 6281 | -3/Research | Repaired Broken Imp. Antigrav System 6435 | -3/Research | Lost 8 parts (1p4n3u) 6518 | -3/Research | System corruption reached 10% 6580 | -3/Research | Found Enh. Force Lance 6596 | -3/Research | Lost 7 parts (2p2n3u) 6673 | -3/Research | Core integrity fell below 50% 6686 | -3/Research | Spotted B-86 Titan 6694 | -3/Research | Core integrity fell below 20% 6700 | -3/Research | Entered another Research area 6700 | -2/Research | Evolved 2 slots: Utility x2 6729 | -2/Research | Lost 5 parts (1n3u1w) 6863 | -2/Research | Spotted B-90 Cyclops 6884 | -2/Research | Incoming investigation squad redirected 6950 | -2/Research | Search patrols dispatched 6981 | -2/Research | Fabricated Lgt. Antimatter Reactor? 7005 | -2/Research | Incoming investigation squad redirected 7023 | -2/Research | Build established: Sprinter 7046 | -2/Research | Discovered new exit (range 18) 7046 | -2/Research | Spotted B-90 Cyclops 7200 | -2/Research | Search patrols dispatched 7284 | -2/Research | Discovered new exit (range 16) 7288 | -2/Research | Identified exit to Access 7288 | -2/Research | Entered Access 7288 | -1/Access | Evolved 2 slots: Propulsion x2 7367 | -1/Access | Incoming investigation squad redirected 7427 | -1/Access | Crushed by falling debris 7427 | -1/Access | System corruption reached 10% 7451 | -1/Access | Identified exit to Surface 7458 | -1/Access | Lost 4 parts (1n3u) 7586 | -1/Access | Spotted B-99 Colossus 7586 | -1/Access | Spotted B-99 Colossus 7588 | -1/Access | Search patrols dispatched 7646 | -1/Access | Warped through subspace 7822 | *** | Escaped! Last Messages --------------- 07805_ Penetrated by Slug. 07805_ Sealed Heavy Doors breached. 07806_ Knocked back. 07806_ Penetrated by Slug. 07806_ Slug penetrates Wall. 07808_ Micro-nuke Launcher destroyed. 07808_ Penetrated by Slug. 07808_ Impulse Thruster destroyed. 07808_ Penetrated by Slug. 07808_ Slug penetrates Wall. 07812_ Adv. Heat Sink destroyed. 07812_ Penetrated by Slug. 07812_ Slug penetrates Sealed Heavy Doors. 07812_ Penetrated by Slug. 07812_ Slug penetrates Sealed Heavy Doors. 07814_ System corrupted: Substantial component data lost. 07815_ Penetrated by Slug. 07815_ Slug penetrates Sealed Heavy Doors. 07817_ Acquired 4 matter. 07819_ Main Access Shell breached. Map ----- +----------------------------------------------------+ | !] #????????????????# # """F"" #?# + | | ! #????????????????# # """ "" #?# ## | | ######????????????????# # #?# ## | | ??????????????????????# # #?# ## | | ??????????????????????# % # ### ## | | ##????????????????????# " ## # | | #????????????????????# + % ## # | | *#????????????????????# # ## + | | #????????????????????# " ## #+# | | #?????????????????#### "############## # | | ##?????????????????# #??????????### ### | | ???????????????????# #????????????# #?# | | ???????????????????# #????????????# #?# | | ???????????????????# #?????######## #?# | | ???????????????????# BB #?????# # ### | | ???????????????????# BB BB #?????# # | | ???????????????????# BB #?????# + | | ???????????????????#""" """"#?????# # | | ??????????????????????" ""????????# # | | ??????????????????????"""" "????????# # | | ???????????????????#""""" """"#?????######## | | ???????????????????# #??????####### | | ???????????????????# """""" #??????# | | #?????????????????????" " #??????# ggC | | #####????#####????????" "" " #??????# ########### | | # """""" #????????" "@ " #????### ###???????? | | / """""" #????????" " #????# #???????? | | # """""" #?????# """" " #????# #???????? | | # """""" #?????# #????# #???????? | | # """""" #?????# #????# #???????? | | # #?????""""""""""""????# ! #???????? | | # #?????#"" #????####g##???????? | | # #?????#"" #???????# #????????? | | # #?????#"" #???????# #????????? | | # #?????#T #???????# #????????? | | # #?????#"" #???????# #????????? | | # #?????#"" #???????# #????????? | | ### # # #######"" ######### #########+ | | u | | ! | | #### ###+####################+############// | | ???# ##?????????????? ""???????????? | | ???# Y#?????????????# """ ?????????? | | ???## ##?????????????# ???????? | | ????# ! ""#??????????????# ?????? | | ????# !! ""#??????????????# " #???? | | ????# !! ""#??????????????# """" #???? | | ????# T#??????????????# """"" #???? | | ????# ""#??????????????# """"" #???? | | ????# ""#??????????????# """"? #???? | +----------------------------------------------------+ Best States ------------- Heat Dissipation 107 Energy Generation 49 Energy Capacity 1205 Matter Stores 450 Matter Capacity 450 Sight Range 22 Robot Scan Range 18 Terrain Scan Range 20 Terrain Scan Density 110 ECM Strength 2 Jamming Range 16 Cloak Strength 3 Additional Mass Support 9 EM Shielding 4 Armor Coverage 225 Resistance: TH 30 Phase Shifting 10 Evasion (%) 76 Targeting Accuracy 8 Melee Accuracy 6 Target Analysis 12 Core Analysis 6 Armor Integrity Analysis 40 Offensive Hacking 14 Defensive Hacking 44 Item Schematics ----------------- Wheel | -10/Materials | Hacked Hvy. Ion Engine | -9/Materials | Scanalyzed Hrd. Medium Armor Plating | -9/Materials | Scanalyzed Flight Unit | -9/Materials | Scanalyzed Beam Cannon | -9/Materials | Scanalyzed Grenade Launcher | -9/Materials | Scanalyzed Lgt. Ion Engine | -9/Materials | Scanalyzed Prc. Assault Rifle | -7/Factory | Scanalyzed Arm. Wheel | -7/Factory | Scanalyzed Combat Drone Bay | -7/Data Miner | Free Lgt. Regenerative Plating | -7/Data Miner | Free Cld. Cesium-ion Thruster | -7/Data Miner | Free Thermal Defense Suite | -7/Data Miner | Free Force Rifle | -7/Data Miner | Free Cmb. Gravmag System | -7/Data Miner | Free Recoil Nullifier | -7/Data Miner | Free Imp. Arc Projector | -7/Data Miner | Free Antigrav System | -7/Data Miner | Free Imp. Weapon Cycler | -7/Data Miner | Free Impulse Thruster | -7/Data Miner | Free Imp. Reaction Control System | -6/Factory | Scanalyzed Magnetic Acceleration Cannon | -6/Factory | Scanalyzed Power Amplifier | -6/Factory | Scanalyzed Assault Drone Bay | -4/Zhirov | Free Exp. Heat Sink | -4/Zhirov | Free Exp. Optical Array | -4/Zhirov | Free Imp. Arc Thrower | -4/Zhirov | Free Adv. Coolant Injector | -3/Research | Scanalyzed Mak. Hammer | -3/Research | Scanalyzed Lgt. Antimatter Reactor | -3/Research | Scanalyzed Bore Cannon | -3/Research | Scanalyzed Robot Schematics ------------------ A-15 Conveyor | -7/Data Miner | Free R-10 Processor | -7/Data Miner | Free H-55 Commando | -7/Data Miner | Free M-22 Extractor | -7/Data Miner | Free L-41 Fighter | -7/Data Miner | Free H-66 Slayer | -7/Data Miner | Free B-60 Warrior | -7/Data Miner | Free Fabricated ------------ Lgt. Regenerative Plating | x1 | -6/Factory Cmb. Gravmag System | x2 | -4/Factory Lgt. Antimatter Reactor | x2 | -2/Research Alien Tech Used ----------------- Integrated Dissipator Transdimensional Reconstructor Achievements -------------- None Challenges ------------ None Game ------ Seed HypercooledCentriumNullifier Manual? 0 Play Time 04:11:01 Cumulative 206.6 hours Start 2022.06.11 @ 16:55:42 End 2022.06.12 @ 13:26:46 Sessions 3 Manual Loads 0 Difficulty Rogue Special Mode None Game No. 102 Rogue 102 Adventurer 0 Explorer 0 Win Type 0 Total 6 Types 5/0/1/0/0/0/0/0/0 Lore% 71 Gallery% 75 Achievement% 61 Wizard Run 0 Options --------- ASCII 0 Keyboard 1 Movement Numpad Keybinds 0 Fullscreen 2 Font 18/SmallcapsGlow Map View 76x50 Tactical HUD 1 Map Filters NONE Filters NONE Steam 1 RUN: 17f521ef-c30a-4733-b2c2-e43985d61d20